{"text_format":"1","workbook":"xlsx","n_sheets":2,"sheets":["Renewals","TaskBook"],"not_rendered":{"charts":0,"images":0,"macros":1,"external_links":3,"defined_names":19,"comments":0,"pivot_tables":0},"unopened":[],"bounds":{"document_bytes":16777216,"sheet_cells":100000,"rows_first":2000,"rows_last":500,"rows_between":2000,"halvings":0,"cell_chars":16384,"cell_head_chars":4096},"cells_cut":0,"cells_raw":0,"read":"whole","date_system":"1900"}

{"sheet":"Renewals","index":0,"n_rows":32,"n_cols":5,"rows_kept":32,"cut":false,"hidden":false,"merged":[]}
["Company","Expiry Date","Renew Date \n(3 months before Expiry Date)","duration","Subject"]
["BR1","2019-09-30",{"$f":"IF(B2=\"No Used Dept\",\"N/A\",IFERROR(EDATE(B2,-3),\"Doc not yet received\"))","v":"2019-06-30"},{"$f":"IF(A2<>\"\",30,\"\")","v":30},"BR4 is due -on Still waiting for Docs"]
["BR2","2019-10-01","2019-07-01",30,"BR4 is due -on Still waiting for Docs"]
["BR3","2020-03-31","2019-12-31",{"$f":"IF(A4<>\"\",30,\"\")","v":30},"BR4 is due -on Still waiting for Docs"]
["BR4","Still waiting for Docs",{"$f":"IF(B5=\"No Used Dept\",\"N/A\",IFERROR(EDATE(B5,-3),\"Doc not yet received\"))","v":"Doc not yet received"},30,{"$f":"IF(A5=\"\",\"\",A5&\" is due -on \"&TEXT(B5,\"dd/mm/yyyy\"))","v":{"$error":"#VALUE!"}}]
["BR5","Still waiting for Docs",{"$f":"IF(B6=\"No Used Dept\",\"N/A\",IFERROR(EDATE(B6,-3),\"Doc not yet received\"))","v":"Doc not yet received"},30,{"$f":"IF(A6=\"\",\"\",A6&\" is due -on \"&TEXT(B6,\"dd/mm/yyyy\"))","v":{"$error":"#VALUE!"}}]
["BR6","Still waiting for Docs","Doc not yet received",30,{"$error":"#VALUE!"}]
[]
[]
[]
[]
[null,null,null,{"$f":"IF(A12<>\"\",30,\"\")","v":""},{"$f":"IF(A12=\"\",\"\",A12&\" is due on \"&TEXT(B12,\"dd/mm/yyyy\"))","v":""}]
[null,null,null,"",""]
[null,null,null,"",""]
[null,null,null,"",""]
[null,null,null,"",""]
[null,null,null,"",""]
[null,null,null,"",""]
[null,null,null,"",""]
[null,null,null,"",""]
[null,null,null,"",""]
[null,null,null,"",""]
[null,null,null,""]
[null,null,null,""]
[null,null,null,""]
[null,null,null,""]
[null,null,null,""]
[null,null,null,""]
[null,null,null,""]
[null,null,null,""]
[null,null,null,""]
[null,null,null,""]

{"sheet":"TaskBook","index":1,"n_rows":4,"n_cols":8,"rows_kept":4,"cut":false,"hidden":false,"merged":[]}
["Заголовок\n(Header)","Задача\n(Task text)","Дата начала\n(Start date)","Дата напоминания\n(Remind date)","Напоминание: часов\n(Remind: hours)","Напоминание: минут\n(Remind: minutes)",null,"Виды важности\n(Importance types)"]
["Заполнить \nOPEX","Заполнить \nOPEX","2021-10-05","2022-10-01",14,5,null,"Низкая"]
[null,null,null,null,null,null,null,"Обычная"]
[null,null,null,null,null,null,null,"Высокая"]